bitfinex-derivatives/quotes_BTCF0:USTF0_20250805
["timestamp","ask_amount","ask_price","bid_price","bid_amount"]
[1754407630168,0.07361134,113000.0,112990.0,1.285208]
[1754407631166,0.07361134,113000.0,112990.0,0.924408]
[1754407631167,0.25062364,113000.0,112990.0,0.924408]
[1754407631473,0.31508364,113000.0,112990.0,1.285208]
[1754407631772,0.31508364,113000.0,112990.0,0.924408]
[1754407632068,0.38996364,113000.0,112990.0,0.998738]
[1754407632274,1.01760434,113000.0,112990.0,0.82007]
[1754407632463,0.993533,113000.0,112990.0,0.997098]
[1754407632974,0.993533,113000.0,112990.0,0.82007]
[1754407633373,0.993533,113000.0,112990.0,0.9970979]
[1754407633968,0.993533,113000.0,112990.0,0.82007]
[1754407634164,0.993533,113000.0,112990.0,0.03083]
[1754407634364,1.354333,113000.0,112990.0,0.66128]
[1754407634577,1.354333,113000.0,112990.0,0.66116]
[1754407635675,1.354333,113000.0,112990.0,0.001]
[1754407635869,2.2081637,113000.0,112990.0,0.66048]
[1754407636067,1.654333,113000.0,112990.0,0.66048]
[1754407636471,0.3217792,112970.0,112960.0,1.8952531]
[1754407636767,0.9915799,112970.0,112960.0,1.96826]
[1754407636972,0.8893999,112970.0,112960.0,1.88384]
[1754407637370,1.2501999,112970.0,112960.0,1.88384]
[1754407637568,0.8893999,112970.0,112960.0,2.145335]
[1754407637769,0.2195992,112970.0,112960.0,2.145335]
[1754407637970,0.04254,112970.0,112960.0,2.145335]
[1754407638184,0.04754,112970.0,112960.0,2.146335]
[1754407638676,0.005,112970.0,112960.0,2.507135]
[1754407639380,0.005,112970.0,112960.0,3.13070232]
[1754407639978,0.2195848,112980.0,112970.0,0.1770593]
[1754407640277,0.2195848,112980.0,112970.0,0.6222793]
[1754407640479,0.8893855,112980.0,112970.0,0.2614793]
[1754407641382,0.7754155,112980.0,112970.0,0.2624793]
[1754407641578,0.2901448,112980.0,112970.0,0.2624793]
[1754407641779,0.2901448,112980.0,112970.0,0.6232793]
[1754407642481,0.2901448,112980.0,112970.0,0.2624793]
[1754407642675,0.3332648,112980.0,112970.0,0.2624793]
[1754407643676,0.002,112980.0,112970.0,1.67212392]
[1754407643880,0.04159,113000.0,112990.0,0.2569979]
[1754407644081,0.1769677,113030.0,113020.0,0.2654571]
[1754407644279,0.2455277,113030.0,113020.0,1.0064271]
[1754407644578,1.2017484,113030.0,113020.0,0.74097]
[1754407644882,1.2448684,113030.0,113020.0,0.74097]
[1754407645079,1.2448684,113030.0,113020.0,0.661]
[1754407646283,0.3771946,113010.0,113000.0,0.07964]
[1754407646478,0.9726153,113010.0,113000.0,0.74056]
[1754407646679,0.3745321,113010.0,113000.0,0.9175723]
[1754407646978,0.11015,113010.0,113000.0,1.2783723]
[1754407647177,0.2185866,113010.0,113000.0,1.2783723]
[1754407647579,0.2195866,113010.0,113000.0,1.2783723]
[1754407647881,0.04259,113010.0,113000.0,1.2783723]
[1754407648579,0.001,113010.0,113000.0,1.2783723]
[1754407648982,0.1779966,113010.0,113000.0,1.2783723]
[1754407649183,0.2195866,113010.0,113000.0,1.2783723]
[1754407649676,0.04259,113010.0,113000.0,1.2783723]
[1754407649882,0.2195866,113010.0,113000.0,1.2783723]
[1754407650083,0.04259,113010.0,113000.0,1.2783723]
[1754407650283,0.2195866,113010.0,113000.0,1.11044857]
[1754407650984,0.2195866,113010.0,113000.0,1.28746087]
[1754407651179,0.1770123,113000.0,112990.0,0.3608]
[1754407651479,0.2628564,113000.0,112990.0,0.915988]
[1754407651783,0.3793134,113010.0,113000.0,0.07964]
[1754407652580,1.0178541,113010.0,113000.0,0.69409]
[1754407652982,1.0168541,113010.0,113000.0,0.7384]
[1754407653780,0.3100909,113010.0,113000.0,0.9164122]
[1754407653981,0.3532109,113010.0,113000.0,0.7394]
[1754407654176,0.4217709,113010.0,113000.0,0.7394]
[1754407654372,0.3775184,113010.0,113000.0,0.9164123]
[1754407654578,0.3785184,113010.0,113000.0,0.9164123]
[1754407656180,0.2911466,113010.0,113000.0,0.2576523]
[1754407656377,0.11415,113010.0,113000.0,0.99427645]
[1754407656582,0.04559,113010.0,113000.0,0.99427645]
[1754407656776,0.04559,113010.0,113000.0,1.35507645]
[1754407656989,0.2225866,113010.0,113000.0,0.99427645]
[1754407657380,0.8880973,113010.0,113000.0,0.81702415]
[1754407657887,0.8880973,113010.0,113000.0,0.73776]
[1754407658188,1.2488973,113010.0,113000.0,0.8350522]
[1754407658493,1.2488973,113010.0,113000.0,0.65804]
[1754407659988,1.2488973,113010.0,113000.0,0.73768]
[1754407660285,0.04559,113010.0,113000.0,1.2754923]
[1754407660476,0.04559,113010.0,113000.0,1.172283]
[1754407660680,0.004,113010.0,113000.0,2.305987]
[1754407660883,0.004,113010.0,113000.0,2.41716052]
[1754407661088,0.004,113010.0,113000.0,2.19638962]
[1754407661389,0.004,113010.0,113000.0,2.0852161]
[1754407661592,0.004,113010.0,113000.0,1.5313854]
[1754407664590,0.004,113010.0,113000.0,1.3544014]
[1754407665980,0.004,113010.0,113000.0,1.2751723]
[1754407667393,0.003,113010.0,113000.0,1.827883]
[1754407667589,0.3085614,113040.0,113030.0,0.1769653]
[1754407667795,0.2897608,113040.0,113030.0,0.9090853]
[1754407667992,0.2897608,113040.0,113030.0,1.2698853]
[1754407668293,0.04159,113050.0,113040.0,0.3862947]
[1754407668593,0.2870684,113060.0,113050.0,0.3420354]
[1754407668788,0.2870684,113060.0,113050.0,0.9975154]
[1754407669093,0.3301884,113060.0,113050.0,0.909054]
[1754407669694,0.3301884,113060.0,113050.0,0.91831254]
[1754407669991,0.2195084,113060.0,113050.0,1.28211254]
[1754407670184,0.2880684,113060.0,113050.0,0.912054]
[1754407670492,0.3311884,113060.0,113050.0,0.912054]
[1754407671193,0.3311884,113060.0,113050.0,0.913054]
[1754407671784,0.2195084,113060.0,113050.0,1.28311346]
[1754407671993,0.2195083,113060.0,113050.0,1.28311346]
[1754407672186,0.3306283,113060.0,113050.0,0.74393946]
[1754407672384,0.884459,113060.0,113050.0,0.74393946]
[1754407672588,0.3306283,113060.0,113050.0,0.73468]
[1754407672795,0.6914283,113060.0,113050.0,0.73468]
[1754407672989,1.245259,113060.0,113050.0,0.65936]
[1754407673183,1.245259,113060.0,113050.0,0.65924]
[1754407674096,1.245259,113060.0,113050.0,0.6592]
[1754407674393,0.6914283,113060.0,113050.0,0.6592]
[1754407674596,1.245259,113060.0,113050.0,0.6592]
[1754407677398,1.247259,113060.0,113050.0,0.6582]
[1754407677792,1.724163,113060.0,113050.0,0.003]
[1754407677993,1.724163,113060.0,113050.0,0.61385]
[1754407679497,1.723163,113060.0,113050.0,0.61385]
[1754407679693,1.725163,113060.0,113050.0,0.61485]
[1754407680401,0.4604617,113050.0,113040.0,0.65376]
[1754407680598,1.3750924,113050.0,113040.0,0.8307097]
[1754407680790,1.3750924,113050.0,113040.0,0.65376]
[1754407680996,0.2195297,113040.0,113030.0,0.07190916]
[1754407681195,0.15082,113030.0,113010.0,1.42874318]
[1754407681500,0.327801,113020.0,113010.0,1.64997288]
[1754407681700,0.327801,113020.0,113010.0,1.61820288]
[1754407682097,0.327801,113020.0,113010.0,2.27192288]
[1754407682498,0.327801,113020.0,113010.0,2.30369288]
[1754407682896,0.328801,113020.0,113010.0,2.75077311]
[1754407683299,0.286221,113020.0,113010.0,2.75077311]
[1754407683501,0.216681,113020.0,113010.0,2.74777311]
[1754407683700,0.217681,113020.0,113010.0,2.74577311]
[1754407684004,0.217681,113020.0,113010.0,2.70152461]
[1754407684405,0.001,113020.0,113010.0,2.70152461]
[1754407684601,0.001,113020.0,113010.0,3.32726069]
[1754407685202,0.1779809,113020.0,113010.0,2.72918149]
[1754407685403,0.2176809,113020.0,113010.0,2.72918149]
[1754407685906,0.1779809,113020.0,113010.0,2.72918149]
[1754407686406,0.001,113020.0,113010.0,2.72918149]
[1754407686707,0.6659394,113040.0,113030.0,0.1769653]
[1754407686902,0.2608988,113040.0,113030.0,0.9354853]
[1754407687294,0.2608988,113040.0,113030.0,0.75852]
[1754407687500,0.2608988,113040.0,113030.0,0.9354853]
[1754407688005,0.2608988,113040.0,113030.0,0.75852]
[1754407688506,0.3720188,113040.0,113030.0,0.72675]
[1754407688696,0.3750188,113040.0,113030.0,0.72775]
[1754407688895,0.9308495,113040.0,113030.0,0.72775]
[1754407689107,0.9308495,113040.0,113030.0,0.80655023]
[1754407689405,1.2916495,113040.0,113030.0,0.80655023]
[1754407689601,1.2896495,113040.0,113030.0,0.15471023]
[1754407689795,1.2906495,113040.0,113030.0,0.76232023]
[1754407691607,1.2906495,113040.0,113030.0,0.08028023]
[1754407691812,1.2896495,113040.0,113030.0,0.73176023]
[1754407692012,1.2896495,113040.0,113030.0,0.65248]
[1754407692405,1.2906495,113040.0,113030.0,0.65248]
[1754407692707,1.2916495,113040.0,113030.0,0.65248]
[1754407693109,0.1769653,113030.0,113020.0,0.07928023]
[1754407693407,1.242416,113030.0,113020.0,0.65152]
[1754407694304,1.243416,113030.0,113020.0,0.65152]
[1754407695110,1.245416,113030.0,113020.0,0.65252]
[1754407695305,1.245416,113030.0,113020.0,0.73180023]
[1754407696313,1.245416,113030.0,113020.0,0.08028023]
[1754407696511,1.245416,113030.0,113020.0,0.73204023]
[1754407697808,1.245416,113030.0,113020.0,1.11717123]
[1754407698001,0.7944353,113030.0,113020.0,1.08540123]
[1754407698201,0.5407653,113030.0,113020.0,1.11717123]
[1754407698401,0.003,113030.0,113020.0,0.935941]
[1754407698604,0.003,113030.0,113020.0,1.40791452]
[1754407699013,0.29561868,113040.0,113030.0,0.2071653]
[1754407699209,0.40385868,113040.0,113030.0,0.54638101]
[1754407699403,0.40385868,113040.0,113030.0,0.48441101]
[1754407699404,0.44643868,113040.0,113030.0,0.48441101]
[1754407699609,1.00026938,113040.0,113030.0,0.07938101]
[1754407699912,1.00026938,113040.0,113030.0,0.51461101]
[1754407700112,1.00226938,113040.0,113030.0,0.51461101]
[1754407700514,0.29307788,113040.0,113030.0,0.72334631]
[1754407700711,0.2186643,113040.0,113030.0,0.72334631]
[1754407701407,0.1799497,113040.0,113030.0,0.72434631]
[1754407702313,0.1779497,113040.0,113030.0,0.72434631]
[1754407702508,0.1779497,113040.0,113030.0,0.73134631]
[1754407703214,0.2189397,113040.0,113030.0,0.73134631]
[1754407704519,0.2179397,113040.0,113030.0,0.83069631]
[1754407704720,0.2189397,113040.0,113030.0,0.83469631]
[1754407705214,0.1779497,113040.0,113030.0,0.83469631]
[1754407705411,0.2189397,113040.0,113030.0,0.83469631]
[1754407705615,0.2189397,113040.0,113030.0,0.7553153]
[1754407706620,0.1779497,113040.0,113030.0,0.7553153]
[1754407706916,0.001,113040.0,113030.0,0.7553153]
[1754407707114,0.001,113040.0,113030.0,1.49967098]
[1754407707316,0.1779496,113040.0,113030.0,1.42031952]
[1754407707514,0.1779496,113040.0,113030.0,0.86648882]
[1754407708624,0.001,113040.0,113030.0,0.86648882]
[1754407708919,0.001,113040.0,113030.0,0.7553153]
[1754407709129,0.001,113040.0,113030.0,1.38846386]
[1754407711117,0.001,113040.0,113030.0,0.83463316]
[1754407712223,0.001,113040.0,113030.0,1.09943316]
[1754407713219,0.2189396,113040.0,113030.0,0.83463316]
[1754407713420,0.9841403,113040.0,113030.0,0.7235453]
[1754407713627,0.9841403,113040.0,113030.0,1.27479439]
[1754407713824,0.9841403,113040.0,113030.0,1.1955]
[1754407714327,0.9841403,113040.0,113030.0,0.44609683]
[1754407714523,0.9841403,113040.0,113030.0,1.09481683]
[1754407714929,1.3449403,113040.0,113030.0,0.73401683]
[1754407715124,1.6449403,113040.0,113030.0,0.73401683]
[1754407715320,1.6449403,113040.0,113030.0,0.65472]
[1754407716930,1.3449403,113040.0,113030.0,0.65472]
[1754407718231,1.3449403,113040.0,113030.0,0.8316853]
[1754407718432,0.9841403,113040.0,113030.0,1.3701753]
[1754407718733,0.9841403,113040.0,113030.0,1.44947213]
[1754407718933,0.9841403,113040.0,113030.0,1.27250683]
[1754407719335,0.9841403,113040.0,113030.0,1.40290213]
[1754407719632,0.9841403,113040.0,113030.0,1.04210213]
[1754407719828,0.9841403,113040.0,113030.0,0.08529683]
[1754407720034,0.9841403,113040.0,113030.0,0.73369683]
[1754407721431,0.9841403,113040.0,113030.0,0.72969683]
[1754407721628,0.9841403,113040.0,113030.0,0.73069683]
[1754407721829,0.9841403,113040.0,113030.0,0.72869683]
[1754407722525,0.9841403,113040.0,113030.0,0.6494]
[1754407722730,0.9881403,113040.0,113030.0,0.6494]
[1754407723036,1.3489403,113040.0,113030.0,0.001]
[1754407723237,1.3479403,113040.0,113030.0,0.6488]
[1754407723426,0.9871403,113040.0,113030.0,0.6488]
[1754407723634,0.9871403,113040.0,113030.0,0.78448]
[1754407723936,0.9871403,113040.0,113030.0,0.6488]
[1754407725928,1.3479403,113040.0,113030.0,0.6488]
[1754407728736,1.3479403,113040.0,113030.0,0.82649]
[1754407728737,0.9871403,113040.0,113030.0,0.82649]
[1754407728932,0.9871403,113040.0,113030.0,0.85834]
[1754407729643,0.9871403,113040.0,113030.0,0.82649]
[1754407730240,0.4333096,113040.0,113030.0,0.82649]
[1754407730445,0.9871403,113040.0,113030.0,0.82649]
[1754407730942,0.7347803,113040.0,113030.0,1.3642553]
[1754407731140,0.3236196,113040.0,113030.0,0.5688753]
[1754407731441,0.4293253,113030.0,113020.0,0.00584263]
[1754407731641,0.426201,113020.0,113010.0,0.75673352]
[1754407731834,1.3408317,113020.0,113010.0,0.64556]
[1754407732844,0.4262166,113010.0,113000.0,0.10305]
[1754407733037,0.9800473,113010.0,113000.0,0.74857]
[1754407733239,0.9800473,113010.0,113000.0,0.82071806]
[1754407733438,0.9800473,113010.0,113000.0,0.17519806]
[1754407733640,0.9800473,113010.0,113000.0,0.74845]
[1754407734242,0.9810473,113010.0,113000.0,0.75245]
[1754407734548,0.99003919,113010.0,113000.0,0.75245]
[1754407734945,1.35083919,113010.0,113000.0,0.64888]
[1754407735538,0.7890166,113010.0,113000.0,0.06097]
[1754407735736,0.9820473,113010.0,113000.0,0.85311]
[1754407735941,0.8733473,113010.0,113000.0,1.3909223]
[1754407736146,0.8733473,113010.0,113000.0,1.3879223]
[1754407736548,0.8733473,113010.0,113000.0,1.21091]
[1754407736748,0.9379973,113010.0,113000.0,1.21091]
[1754407737147,0.9810473,113010.0,113000.0,1.20991]
[1754407737443,0.99105157,113010.0,113000.0,0.63906082]
[1754407737648,0.99005157,113010.0,113000.0,1.28378082]
[1754407737948,0.9810473,113010.0,113000.0,1.28378082]
[1754407739044,0.9369973,113010.0,113000.0,0.92298082]
[1754407739351,0.9810473,113010.0,113000.0,1.25263082]
[1754407739552,0.9810473,113010.0,113000.0,1.18056]
[1754407740046,0.9810473,113010.0,113000.0,0.53584]
[1754407740247,0.9810473,113010.0,113000.0,0.81888]
[1754407741544,0.9810473,113010.0,113000.0,0.64584]
[1754407741948,1.3418473,113010.0,113000.0,0.64584]
[1754407742145,1.3428473,113010.0,113000.0,0.64524]
[1754407742744,1.3418473,113010.0,113000.0,0.64524]
[1754407742945,1.3428473,113010.0,113000.0,0.64524]
[1754407743149,1.3418473,113010.0,113000.0,0.64324]
[1754407743350,1.3428473,113010.0,113000.0,0.64424]
[1754407744248,1.3438473,113010.0,113000.0,0.64424]
[1754407744450,1.35382295,113010.0,113000.0,0.64424]
[1754407745249,1.35282295,113010.0,113000.0,0.67342]
[1754407745455,1.35282295,113010.0,113000.0,0.77361]
[1754407745661,1.35282295,113010.0,113000.0,0.81728]
[1754407745952,1.35182295,113010.0,113000.0,0.67203]
[1754407746248,1.3428473,113010.0,113000.0,0.9201822]
[1754407746457,1.3428473,113010.0,113000.0,1.0254422]
[1754407746655,0.9820473,113010.0,113000.0,1.0254422]
[1754407746855,0.9379973,113010.0,113000.0,1.0254422]
[1754407747060,0.3841666,113010.0,113000.0,1.0254422]
[1754407747557,0.9379973,113010.0,113000.0,1.0254422]
[1754407747757,0.3841666,113010.0,113000.0,1.0254422]
[1754407748053,0.9379973,113010.0,113000.0,1.0254422]
[1754407748254,0.9379973,113010.0,113000.0,0.7430022]
[1754407748255,0.1789966,113010.0,113000.0,0.7430022]
[1754407748451,0.2202666,113010.0,113000.0,1.3852822]
[1754407748651,0.2849166,113010.0,113000.0,1.3852822]
[1754407748847,0.3119566,113010.0,113000.0,1.3852822]
[1754407749045,0.2202666,113010.0,113000.0,1.3852822]
[1754407749657,0.2202666,113010.0,113000.0,1.46455825]
[1754407749955,0.2202666,113010.0,113000.0,1.3852822]
[1754407750157,0.2202666,113010.0,113000.0,1.46455825]
[1754407750654,0.002,113010.0,113000.0,1.9391129]
[1754407750850,0.2212417,113020.0,113010.0,0.3790066]
[1754407751052,0.2212417,113020.0,113010.0,0.7398066]
[1754407751856,0.1789953,113020.0,113010.0,0.7398066]
[1754407752955,0.002,113020.0,113010.0,0.7398066]
[1754407753262,0.002,113020.0,113010.0,1.0398066]
[1754407753463,0.1789809,113020.0,113010.0,1.0398066]
[1754407753758,0.1789809,113020.0,113010.0,1.11908265]
[1754407753959,0.002,113020.0,113010.0,1.11908265]
[1754407754170,0.2222509,113020.0,113010.0,0.82775925]
[1754407754555,0.2202509,113020.0,113010.0,0.83700683]
[1754407754754,0.2182509,113020.0,113010.0,0.83700683]
[1754407754950,0.04227,113020.0,113010.0,0.54000683]
[1754407755155,0.001,113020.0,113010.0,0.54000683]
[1754407755760,0.2192509,113020.0,113010.0,0.54000683]
[1754407756560,0.2839009,113020.0,113010.0,0.46073078]
[1754407756762,0.2192509,113020.0,113010.0,0.46073078]
[1754407758862,0.2192509,113020.0,113010.0,0.46077078]
[1754407760056,0.9810316,113020.0,113010.0,1.00688]
[1754407760363,0.9810316,113020.0,113010.0,0.64608]
[1754407760564,0.9810316,113020.0,113010.0,0.00404]
[1754407760757,0.9810316,113020.0,113010.0,0.64608]
[1754407760758,0.98987999,113020.0,113010.0,0.64608]
[1754407761560,1.35067999,113020.0,113010.0,0.64608]
[1754407762060,1.3418316,113020.0,113010.0,0.64608]
[1754407765168,0.9820316,113020.0,113010.0,0.64508]
[1754407767069,0.9820316,113020.0,113010.0,0.8200766]
[1754407767268,0.9820316,113020.0,113010.0,0.64308]
[1754407767771,1.3428316,113020.0,113010.0,0.64308]
[1754407767972,1.3428316,113020.0,113010.0,0.64304]
[1754407768774,1.26320258,113020.0,113010.0,0.64304]
[1754407770061,0.2484122,113000.0,112990.0,1.73381726]
[1754407770262,0.91128388,113000.0,112990.0,2.40430726]
[1754407770467,0.91128388,113000.0,112990.0,2.01497726]
[1754407771074,0.91128388,113000.0,112990.0,2.04350726]
[1754407771265,0.9211896,113000.0,112990.0,2.04650726]
[1754407771666,0.91228388,113000.0,112990.0,2.22353516]
[1754407772267,0.91228388,113000.0,112990.0,2.04650726]
[1754407772776,0.4380822,113000.0,112990.0,2.22353526]
[1754407772983,0.91228388,113000.0,112990.0,2.58433526]
[1754407773673,0.91228388,113000.0,112990.0,2.40730726]
[1754407773874,0.91228388,113000.0,112990.0,2.32803121]
[1754407774674,0.79640388,113000.0,112990.0,1.96723121]
[1754407774880,0.91228388,113000.0,112990.0,2.34466121]
[1754407775082,0.91228388,113000.0,112990.0,1.98386121]
[1754407775274,0.2776422,113000.0,112990.0,2.52168911]
[1754407775578,0.044,113000.0,112990.0,2.52168911]
[1754407775781,0.1780123,113000.0,112990.0,2.60096516]
[1754407775987,0.001,113000.0,112990.0,3.07516684]
[1754407776684,0.001,113000.0,112990.0,2.60096516]
[1754407777188,0.1780122,113000.0,112990.0,2.60096516]
[1754407777791,0.001,113000.0,112990.0,2.60096516]
[1754407778386,0.1780122,113000.0,112990.0,2.60096516]
[1754407778787,0.001,113000.0,112990.0,2.60096516]
[1754407778978,0.1780122,113000.0,112990.0,2.60096516]
[1754407779582,0.1780122,113000.0,112990.0,2.88248911]
[1754407780186,0.001,113000.0,112990.0,2.88248911]
[1754407781091,0.1780123,113000.0,112990.0,2.88248911]
[1754407781391,0.1780123,113000.0,112990.0,2.90034963]
[1754407781991,0.001,113000.0,112990.0,2.90034963]
[1754407782288,0.177009,113010.0,113000.0,0.2934322]
[1754407782590,0.3545289,113020.0,113010.0,0.2918166]
[1754407782789,0.3084889,113020.0,113010.0,1.2944566]
[1754407782992,0.4200489,113020.0,113010.0,1.2944566]
[1754407783685,0.5359289,113020.0,113010.0,1.2944566]
[1754407783987,0.5925589,113020.0,113010.0,1.2944566]
[1754407784490,0.5925589,113020.0,113010.0,1.2994566]
[1754407784491,0.5935589,113020.0,113010.0,1.2994566]
[1754407785091,0.5935589,113020.0,113010.0,1.3014566]
[1754407785390,0.6381189,113020.0,113010.0,1.3014566]
[1754407785992,0.4508389,113020.0,113010.0,1.3014566]
[1754407786193,0.4508389,113020.0,113010.0,1.38076911]
[1754407786781,0.5219189,113020.0,113010.0,1.38076911]
[1754407786989,0.6381189,113020.0,113010.0,1.38076911]
[1754407787390,1.19364803,113020.0,113010.0,1.10883]
[1754407787592,1.19364803,113020.0,113010.0,0.74803]
[1754407788385,1.19364803,113020.0,113010.0,0.64884]
[1754407788586,1.19364803,113020.0,113010.0,1.03817]
[1754407788792,1.19364803,113020.0,113010.0,0.67737]
[1754407789783,0.18715,113020.0,113010.0,1.2858266]
[1754407789984,0.332541,113020.0,113010.0,1.3014566]
[1754407790188,0.15556,113020.0,113010.0,1.3014566]
[1754407790390,0.332541,113020.0,113010.0,1.3014566]
[1754407791488,0.332541,113020.0,113010.0,0.9406566]
[1754407791891,0.332541,113020.0,113010.0,1.3014566]
[1754407792591,0.11256,113020.0,113010.0,1.93629824]
[1754407792798,0.11256,113020.0,113010.0,1.85698573]
[1754407793689,0.11256,113020.0,113010.0,1.93627634]
[1754407794094,0.11256,113020.0,113010.0,1.38074721]
[1754407795197,0.11256,113020.0,113010.0,1.74154721]
[1754407795398,0.11256,113020.0,113010.0,1.6622566]
[1754407796595,0.001,113020.0,113010.0,1.6622566]
[1754407797994,0.2207409,113020.0,113010.0,1.9270566]
[1754407798195,0.3191209,113020.0,113010.0,1.9265766]
[1754407798395,0.21358,113020.0,113010.0,1.9265766]
[1754407798596,0.04376,113020.0,113010.0,1.9265766]
[1754407798801,0.001,113020.0,113010.0,1.9265766]
[1754407799696,0.07436,113040.0,113030.0,0.2817853]
[1754407799899,0.07436,113040.0,113030.0,2.20019443]
[1754407800296,0.07436,113040.0,113030.0,1.6446653]
[1754407800697,0.07436,113040.0,113030.0,2.11833555]
[1754407801099,0.07436,113040.0,113030.0,2.38313555]
[1754407801696,0.3962696,113040.0,113030.0,1.9093853]
[1754407802004,0.33224,113040.0,113030.0,1.9093853]
[1754407802206,0.21702,113040.0,113030.0,1.9093853]
[1754407802400,0.14558,113040.0,113030.0,1.9093853]
[1754407802702,0.07436,113040.0,113030.0,1.6445853]
[1754407802899,0.07436,113040.0,113030.0,2.11825555]
[1754407803096,0.07436,113040.0,113030.0,2.13639142]
[1754407803306,0.03404,113040.0,113030.0,2.61332742]
[1754407803496,0.03404,113040.0,113030.0,3.08699767]
[1754407803799,0.03404,113040.0,113030.0,2.61332742]
[1754407804592,0.03504,113040.0,113030.0,2.61532742]
[1754407804797,0.03504,113040.0,113030.0,2.14153717]
[1754407804993,0.0778,113040.0,113030.0,1.84153717]
[1754407805197,0.03504,113040.0,113030.0,1.84153717]
[1754407805403,0.0778,113040.0,113030.0,2.21960408]
[1754407805592,0.03504,113040.0,113030.0,2.21960408]
[1754407806001,0.03504,113040.0,113030.0,2.39654008]
[1754407806599,0.03604,113040.0,113030.0,2.41254008]
[1754407807002,0.03604,113040.0,113030.0,2.71254008]
[1754407807899,0.11268,113080.0,113070.0,0.1769027]
[1754407808104,0.0221109,113080.0,113070.0,2.11241486]
[1754407808304,0.04276,113090.0,113080.0,0.176887]
[1754407808499,0.04276,113090.0,113080.0,0.537687]
[1754407809703,0.04376,113090.0,113080.0,0.538687]
[1754407810101,0.4367514,113090.0,113080.0,0.538687]
[1754407810405,0.25988,113090.0,113080.0,0.538687]
[1754407810606,0.21688,113090.0,113080.0,0.538687]
[1754407810803,0.21588,113090.0,113080.0,0.538687]
[1754407811003,0.25888,113090.0,113080.0,0.539687]
[1754407811204,0.4357514,113090.0,113080.0,0.54858542]
[1754407811399,0.25888,113090.0,113080.0,0.55258542]
[1754407811604,0.25888,113090.0,113080.0,0.62318685]
[1754407811808,0.4357514,113090.0,113080.0,0.62318685]
[1754407812909,0.99075431,113090.0,113080.0,0.44629985]
[1754407813104,0.99075431,113090.0,113080.0,0.71724143]
[1754407813708,0.4357514,113090.0,113080.0,0.71724143]
[1754407813900,0.99075431,113090.0,113080.0,0.71724143]
[1754407814105,0.99075431,113090.0,113080.0,1.25492843]
[1754407814308,0.99075431,113090.0,113080.0,0.71724143]
[1754407816004,0.99075431,113090.0,113080.0,0.89412843]
[1754407816810,0.99075431,113090.0,113080.0,0.71724143]
[1754407817010,1.35155431,113090.0,113080.0,0.71724143]
[1754407817606,1.29075431,113090.0,113080.0,0.64648]
[1754407818609,1.29075431,113090.0,113070.0,0.3608]
[1754407818610,0.434767,113080.0,113070.0,0.3608]
[1754407818807,0.434767,113080.0,113050.0,1.3121056]
[1754407818808,0.2506583,113060.0,113050.0,1.8498286]
[1754407819008,0.98980121,113060.0,113050.0,2.4018139]
[1754407819411,0.4347983,113060.0,113050.0,2.4018139]
[1754407820109,0.4347983,113060.0,113050.0,2.4850379]
[1754407820314,0.99080121,113060.0,113050.0,2.308104]
[1754407820910,1.00002743,113060.0,113050.0,2.308104]
[1754407821111,0.99080121,113060.0,113050.0,1.667664]
[1754407821312,1.28980121,113060.0,113050.0,1.295864]
[1754407821513,1.65160121,113060.0,113050.0,1.943224]
[1754407822311,1.65160121,113060.0,113050.0,2.120158]
[1754407822614,1.29080121,113060.0,113050.0,1.23064]
[1754407822813,1.65360121,113060.0,113050.0,1.871]
[1754407823013,1.29280121,113060.0,113050.0,1.871]
[1754407823215,1.65360121,113060.0,113050.0,1.866]
[1754407823820,1.65360121,113060.0,113050.0,1.865]
[1754407824118,1.35360121,113060.0,113050.0,1.865]
[1754407824522,1.35360121,113060.0,113050.0,0.64136]
[1754407826415,1.83050521,113060.0,113050.0,0.001]
[1754407826624,0.4218396,113040.0,113030.0,0.55588897]
[1754407826814,0.97684251,113040.0,113030.0,1.19616897]
[1754407827208,0.97684251,113040.0,113030.0,1.01921587]
[1754407827412,0.97684251,113040.0,113030.0,0.65841587]
[1754407827620,0.97684251,113040.0,113030.0,1.00108]
[1754407827819,0.97684251,113040.0,113030.0,0.3608]
[1754407828022,0.2670833,113030.0,113010.0,0.55549107]
[1754407828315,0.97687381,113020.0,113010.0,0.44855642]
[1754407828515,0.9860418,113020.0,113010.0,0.71032975]
[1754407828717,0.97687381,113020.0,113010.0,0.8172765]
[1754407829123,0.97687381,113020.0,113010.0,0.64028]
[1754407829620,0.97687381,113020.0,113010.0,0.8172765]
[1754407829820,0.97687381,113020.0,113010.0,1.1780765]
[1754407830215,0.97687381,113020.0,113010.0,1.1840765]
[1754407830520,0.97687381,113020.0,113010.0,0.64628]
[1754407830921,1.33867381,113020.0,113010.0,0.64128]
[1754407831616,1.33967381,113020.0,113010.0,0.64128]
[1754407831822,1.33967381,113020.0,113010.0,0.64228]
[1754407832217,0.97887381,113020.0,113010.0,0.64228]
[1754407832916,1.33967381,113020.0,113010.0,0.64228]
[1754407833414,1.81664181,113020.0,113010.0,0.64228]
[1754407833619,1.81664181,113020.0,113010.0,0.002]
[1754407834619,0.4218866,113010.0,113000.0,0.64024]
[1754407834824,0.97688951,113010.0,113000.0,0.64024]
[1754407835419,1.33768951,113010.0,113000.0,0.64024]
[1754407836216,0.7826866,113010.0,113000.0,0.64024]
[1754407836423,1.33768951,113010.0,113000.0,0.64024]
[1754407838215,0.4219023,113000.0,112990.0,0.64028]
[1754407838422,0.97690521,113000.0,112990.0,0.64028]
[1754407839532,0.97790521,113000.0,112990.0,0.64028]
[1754407840621,0.97890521,113000.0,112990.0,0.64328]
[1754407845128,0.1790123,113000.0,112990.0,0.8203079]
[1754407845324,0.97890521,113000.0,112990.0,0.8354379]
[1754407845525,0.97890521,113000.0,112990.0,0.65259]
[1754407846532,0.97890521,113000.0,112990.0,0.003]
[1754407846724,0.97890521,113000.0,112990.0,0.64328]
[1754407847727,1.33970521,113000.0,112990.0,0.64328]
[1754407848032,0.97890521,113000.0,112990.0,0.64328]
[1754407849033,1.89470812,113000.0,112990.0,0.003]
[1754407849233,1.89470812,113000.0,112990.0,0.64328]
[1754407849531,1.33970521,113000.0,112990.0,0.64328]
[1754407849934,1.89470812,113000.0,112990.0,0.64328]
[1754407850334,0.2751779,112990.0,112980.0,0.00171]
[1754407850536,1.33772081,112990.0,112980.0,0.64199]
[1754407850731,1.33772081,112990.0,112980.0,0.00171]
[1754407850931,1.33772081,112990.0,112980.0,0.64199]
[1754407851830,1.33872081,112990.0,112980.0,0.64199]
[1754407852330,1.3478763,112990.0,112980.0,0.00171]
[1754407852636,1.3478763,112990.0,112980.0,0.64199]